fUST/lending_fUST_20251218
["ID","MTS","AMOUNT","RATE_DAILY","PERIOD"]
[398960016,1766023856741,-305.73261817,0.00041917,120]
[398960017,1766023856750,-500.0,0.00041917,120]
[398960018,1766023856759,-500.0,0.00041917,120]
[398960019,1766023856768,-500.0,0.00041917,120]
[398960020,1766023856778,-584.758341,0.00041917,120]
[398960021,1766023856787,-500.0,0.00041917,120]
[398960022,1766023856796,-584.758341,0.00041917,120]
[398960023,1766023856806,-500.0,0.00041917,120]
[398960024,1766023856815,-584.758341,0.00041917,120]
[398960025,1766023856825,-584.758341,0.00041917,120]
[398960026,1766023856834,-500.0,0.00041917,120]
[398960027,1766023856843,-500.0,0.00041917,120]
[398960028,1766023856852,-500.0,0.00041917,120]
[398960029,1766023856862,-500.0,0.00041917,120]
[398960030,1766023856871,-500.0,0.00041917,30]
[398960031,1766023856880,-486.45677014,0.00041917,120]
[398960032,1766023856890,-500.0,0.00041917,120]
[398960033,1766023856899,-500.0,0.00041917,120]
[398960034,1766023856908,-500.0,0.00041917,120]
[398960035,1766023856917,-500.0,0.00041917,120]
[398960036,1766023856927,-500.0,0.00041917,120]
[398960037,1766023856936,-500.0,0.00041917,120]
[398960038,1766023856945,-500.0,0.00041917,120]
[398960039,1766023856955,-500.0,0.00041917,120]
[398960040,1766023856963,-500.0,0.00041917,120]
[398960041,1766023856973,-500.0,0.00041917,30]
[398960042,1766023856982,-500.0,0.00041917,120]
[398960043,1766023856992,-500.0,0.00041917,21]
[398960044,1766023857001,-500.0,0.00041917,30]
[398960045,1766023857010,-458.25938803,0.00041917,120]
[398960046,1766023857018,-500.0,0.00041917,120]
[398960047,1766023857029,-1341.12,0.00041917,120]
[398960048,1766023857038,-500.0,0.00041917,120]
[398960049,1766023857047,-680.25,0.00041917,120]
[398960050,1766023857056,-500.0,0.00041917,120]
[398960051,1766023857065,-500.0,0.00041917,120]
[398960052,1766023857074,-500.0,0.00041917,120]
[398960053,1766023857083,-500.0,0.00041917,120]
[398960054,1766023857093,-500.0,0.00041917,120]
[398960055,1766023857102,-150.0,0.00041917,60]
[398960056,1766023857111,-500.0,0.00041917,120]
[398960057,1766023857120,-500.0,0.00041917,120]
[398960058,1766023857129,-246.86,0.00041917,120]
[398960059,1766023857138,-580.14094363,0.00041917,120]
[398960060,1766023857147,-440.38805148,0.00041917,120]
[398960061,1766023857157,-500.0,0.00041917,120]
[398960062,1766023857166,-587.505396,0.00041917,120]
[398960063,1766023857175,-500.0,0.00041917,120]
[398960064,1766023857186,-587.505396,0.00041917,120]
[398960065,1766023857195,-500.0,0.00041917,120]
[398960066,1766023857205,-587.505396,0.00041917,120]
[398960067,1766023857214,-587.505398,0.00041917,120]
[398960068,1766023857223,-500.0,0.00041917,120]
[398960069,1766023857232,-500.0,0.00041917,120]
[398960070,1766023857242,-500.0,0.00041917,120]
[398960071,1766023857251,-360.08395395,0.00041917,120]
[398960072,1766023857260,-500.0,0.00041917,120]
[398960073,1766023857269,-500.0,0.00041917,120]
[398960074,1766023857331,-500.0,0.00041917,120]
[398960075,1766023857340,-500.0,0.00041917,120]
[398960076,1766023857350,-868.74,0.00041917,3]
[398960077,1766023857359,-500.0,0.00041917,120]
[398960078,1766023857369,-601.5985867,0.00041917,120]
[398960079,1766023857378,-500.0,0.00041917,120]
[398960080,1766023857387,-202.91441456,0.00041917,120]
[398960081,1766023857396,-500.0,0.00041917,120]
[398960082,1766023857406,-500.0,0.00041917,120]
[398960083,1766023857415,-500.0,0.00041917,120]
[398960084,1766023857424,-500.0,0.00041917,120]
[398960085,1766023857433,-2080.09,0.00041917,120]
[398960086,1766023857442,-500.0,0.00041917,120]
[398960087,1766023857452,-500.0,0.00041917,120]
[398960088,1766023857461,-500.0,0.00041917,120]
[398960089,1766023857471,-835.86,0.00041917,120]
[398960090,1766023857480,-500.0,0.00041917,120]
[398960091,1766023857490,-778.67,0.00041917,120]
[398960092,1766023857499,-3505.63,0.00041917,120]
[398960093,1766023857509,-500.0,0.00041917,120]
[398960094,1766023857518,-500.0,0.00041917,120]
[398960095,1766023857529,-433.26,0.00041917,120]
[398960096,1766023857539,-500.0,0.00041917,120]
[398960097,1766023857548,-500.0,0.00041917,120]
[398960098,1766023857558,-500.0,0.00041917,120]
[398960099,1766023857567,-2332.19,0.00041917,120]
[398960100,1766023857576,-500.0,0.00041917,120]
[398960101,1766023857586,-565.82,0.00041917,120]
[398960102,1766023857595,-500.0,0.00041917,120]
[398960103,1766023857604,-192.36284312,0.00041917,120]
[398960104,1766023857614,-500.0,0.00041917,120]
[398960105,1766023857623,-500.0,0.00041917,120]
[398960106,1766023857633,-500.0,0.00041917,120]
[398960107,1766023857645,-500.0,0.00041917,120]
[398960108,1766023857654,-586.96406357,0.00041917,120]
[398960109,1766023857664,-466.43456925,0.00041917,120]
[398960110,1766023857673,-500.0,0.00041917,120]
[398960111,1766023857683,-693.04,0.00041917,120]
[398960112,1766023857693,-226.3584509,0.00041917,120]
[398960113,1766023857703,-500.0,0.00041917,120]
[398960114,1766023857713,-203.92558735,0.00041917,120]
[398960115,1766023857724,-500.0,0.00041917,120]
[398960116,1766023857735,-500.0,0.00041917,120]
[398960117,1766023857744,-500.0,0.00041917,120]
[398960118,1766023857753,-500.0,0.00041917,120]
[398960119,1766023857773,-485.99541466,0.00041917,120]
[398960120,1766023857791,-500.0,0.00041917,120]
[398960121,1766023857811,-500.0,0.00041917,120]
[398960122,1766023857829,-1041.66,0.00041917,120]
[398960123,1766023857848,-500.0,0.00041917,120]
[398960124,1766023857866,-500.0,0.00041917,120]
[398960125,1766023857884,-500.0,0.00041917,120]
[398960126,1766023857898,-500.0,0.00041917,120]
[398960127,1766023857913,-508.44675138,0.00041917,120]
[398960128,1766023857931,-371.17442684,0.00041917,120]
[398960129,1766023857951,-500.0,0.00041917,120]
[398960130,1766023857967,-1007.7,0.00041917,60]
[398960131,1766023857981,-500.0,0.00041917,120]
[398960132,1766023857998,-500.0,0.00041917,120]
[398960133,1766023858014,-199.85884295,0.00041917,120]
[398960134,1766023858028,-452.00931135,0.00041917,120]
[398960135,1766023858042,-242.6047242,0.00041917,120]
[398960136,1766023858056,-500.0,0.00041917,120]
[398960137,1766023858071,-500.0,0.00041917,120]
[398960138,1766023858086,-500.0,0.00041917,120]
[398960139,1766023858100,-500.0,0.00041917,120]
[398960140,1766023858114,-917.68,0.00041917,120]
[398960141,1766023858129,-536.79,0.00041917,120]
[398960142,1766023858143,-500.0,0.00041917,120]
[398960143,1766023858158,-500.0,0.00041917,120]
[398960144,1766023858173,-500.0,0.00041917,120]
[398960145,1766023858187,-500.0,0.00041917,120]
[398960146,1766023858201,-500.0,0.00041917,120]
[398960147,1766023858215,-500.0,0.00041917,120]
[398960148,1766023858229,-562.1975395,0.00041917,120]
[398960149,1766023858243,-500.0,0.00041917,120]
[398960150,1766023858256,-500.0,0.00041917,60]
[398960151,1766023858270,-500.0,0.00041917,120]
[398960152,1766023858284,-500.0,0.00041917,120]
[398960153,1766023858301,-500.0,0.00041917,120]
[398960154,1766023858315,-500.0,0.00041917,120]
[398960155,1766023858328,-500.0,0.00041917,120]
[398960156,1766023858342,-296.11905277,0.00041917,120]
[398960157,1766023858356,-500.0,0.00041917,120]
[398960158,1766023858371,-500.0,0.00042191,120]
[398960159,1766023858386,-500.0,0.00042191,120]
[398960160,1766023858401,-500.0,0.00042191,120]
[398960161,1766023858415,-500.0,0.00042191,120]
[398960162,1766023858429,-500.0,0.00042191,120]
[398960163,1766023858518,-500.0,0.00042191,120]
[398960164,1766023858528,-227.76810974,0.00042191,120]
[398960165,1766023858538,-500.0,0.00042191,120]
[398960166,1766023858547,-500.0,0.00042191,120]
[398960167,1766023858556,-500.0,0.00042191,120]
[398960168,1766023858566,-169.7751662,0.00042191,120]
[398960169,1766023858576,-500.0,0.00042191,120]
[398960170,1766023858585,-500.0,0.00042191,30]
[398960171,1766023858595,-500.0,0.00042191,120]
[398960172,1766023858604,-500.0,0.00042191,120]
[398960173,1766023858613,-500.0,0.00042191,120]
[398960174,1766023858623,-500.0,0.00042191,120]
[398960175,1766023858633,-500.0,0.00042191,120]
[398960176,1766023858644,-500.0,0.00042191,120]
[398960177,1766023858655,-500.0,0.00042191,120]
[398960178,1766023858664,-500.0,0.00042191,120]
[398960179,1766023858673,-599.28298737,0.00042191,120]
[398960180,1766023858682,-500.0,0.00042191,120]
[398960181,1766023858693,-500.0,0.00042191,120]
[398960182,1766023858702,-500.0,0.00042191,120]
[398960183,1766023858711,-576.64717941,0.00042191,120]
[398960184,1766023858722,-500.0,0.00042191,120]
[398960185,1766023858731,-500.0,0.00042191,120]
[398960186,1766023858739,-604.25794051,0.00042191,120]
[398960187,1766023858748,-564.74776853,0.00042191,120]
[398960188,1766023858757,-500.0,0.00042191,120]
[398960189,1766023858766,-488.81,0.00042191,120]
[398960190,1766023858776,-312.47122713,0.00042191,120]
[398960191,1766023858785,-500.0,0.00042191,120]
[398960192,1766023858794,-500.0,0.00042191,120]
[398960193,1766023858803,-500.0,0.00042191,120]
[398960194,1766023858812,-500.0,0.00042191,120]
[398960195,1766023858821,-500.0,0.00042191,120]
[398960196,1766023858831,-500.0,0.00042191,120]
[398960197,1766023858840,-500.0,0.00042191,120]
[398960198,1766023858849,-500.0,0.00042191,120]
[398960199,1766023858858,-500.0,0.00042191,120]
[398960200,1766023858868,-500.0,0.00042191,120]
[398960201,1766023858878,-230.31891627,0.00042191,120]
[398960202,1766023858888,-500.0,0.00042191,120]
[398960203,1766023858903,-500.0,0.00042191,120]
[398960204,1766023858912,-500.0,0.00042191,120]
[398960205,1766023858922,-500.0,0.00042191,120]
[398960206,1766023858932,-500.0,0.00042191,120]
[398960207,1766023858942,-500.0,0.00042191,120]
[398960208,1766023858952,-500.0,0.00042191,120]
[398960209,1766023858961,-500.0,0.00042191,120]
[398960210,1766023858971,-500.0,0.00042191,120]
[398960211,1766023858980,-534.72957971,0.00042191,120]
[398960212,1766023858990,-500.0,0.00042191,30]
[398960213,1766023858999,-500.0,0.00042191,120]
[398960214,1766023859008,-169.00342909,0.00042191,120]
[398960215,1766023859018,-500.0,0.00042191,120]
[398960216,1766023859031,-500.0,0.00042191,120]
[398960217,1766023859041,-500.0,0.00042191,120]
[398960218,1766023859050,-500.0,0.00042191,120]
[398960219,1766023859059,-432.46284569,0.00042191,120]
[398960220,1766023859069,-500.0,0.00042191,120]
[398960221,1766023859078,-285.04528629,0.00042191,120]
[398960222,1766023859088,-500.0,0.00042191,30]
[398960223,1766023859097,-500.0,0.00042191,120]
[398960224,1766023859106,-500.0,0.00042191,21]
[398960225,1766023859115,-500.0,0.00042191,30]
[398960226,1766023859125,-500.0,0.00042191,120]
[398960227,1766023859135,-1341.12,0.00042191,120]
[398960228,1766023859143,-500.0,0.00042191,120]
[398960229,1766023859152,-680.25,0.00042191,120]
[398960230,1766023859161,-500.0,0.00042191,120]
[398960231,1766023859170,-500.0,0.00042191,120]
[398960232,1766023859179,-500.0,0.00042191,120]
[398960233,1766023859188,-500.0,0.00042191,120]
[398960234,1766023859197,-181.50501711,0.00042191,120]
[398960235,1766023859207,-500.0,0.00042191,120]
[398960236,1766023859216,-500.0,0.00042191,120]
[398960237,1766023859225,-500.0,0.00042191,120]
[398960238,1766023859234,-500.0,0.00042191,120]
[398960239,1766023859243,-500.0,0.00042191,120]
[398960240,1766023859253,-168.68,0.00042191,120]
[398960241,1766023859264,-500.0,0.00042191,120]
[398960242,1766023859277,-500.0,0.00042191,120]
[398960243,1766023859286,-500.0,0.00042191,120]
[398960244,1766023859294,-500.0,0.00042191,120]
[398960245,1766023859303,-500.0,0.00042191,120]
[398960246,1766023859312,-500.0,0.00042191,120]
[398960247,1766023859321,-868.74,0.00042191,3]
[398960248,1766023859330,-500.0,0.00042191,120]
[398960249,1766023859340,-500.0,0.00042191,120]
[398960250,1766023859349,-500.0,0.00042191,120]
[398960251,1766023859358,-186.94713058,0.00042191,120]
[398960252,1766023859368,-500.0,0.00042191,120]
[398960253,1766023859378,-500.0,0.00042191,120]
[398960254,1766023859387,-2080.09,0.00042191,120]
[398960255,1766023859396,-469.81320673,0.00042191,120]
[398960256,1766023859405,-500.0,0.00042191,120]
[398960257,1766023859414,-500.0,0.00042191,120]
[398960258,1766023859424,-835.86,0.00042191,120]
[398960259,1766023859433,-500.0,0.00042191,120]
[398960260,1766023859443,-778.67,0.00042191,120]
[398960261,1766023859453,-3505.63,0.00042191,120]
[398960262,1766023859463,-500.0,0.00042191,120]
[398960263,1766023859474,-196.29628296,0.00042191,120]
[398960264,1766023859484,-579.70019403,0.00042191,120]
[398960265,1766023859494,-500.0,0.00042191,120]
[398960266,1766023859503,-500.0,0.00042191,120]
[398960267,1766023859513,-2332.19,0.00042191,120]
[398960268,1766023859528,-500.0,0.00042191,120]
[398960269,1766023859537,-221.48047664,0.00042191,120]
[398960270,1766023859546,-500.0,0.00042191,120]
[398960271,1766023859555,-500.0,0.00042191,120]
[398960272,1766023859565,-501.76,0.00042191,120]
[398960273,1766023859574,-500.0,0.00042191,120]
[398960274,1766023859583,-500.0,0.00042191,120]
[398960275,1766023859594,-693.04,0.00042191,120]
[398960276,1766023859603,-500.0,0.00042191,120]
[398960277,1766023859619,-500.0,0.00042191,120]
[398960278,1766023859636,-500.0,0.00042191,120]
[398960279,1766023859650,-197.78465509,0.00042191,120]
[398960280,1766023859659,-306.3452934,0.00042191,120]
[398960281,1766023859668,-500.0,0.00042191,120]
[398960282,1766023859677,-500.0,0.00042191,120]
[398960283,1766023859688,-1041.66,0.00042191,120]
[398960284,1766023859755,-500.0,0.00042191,120]
[398960285,1766023859764,-500.0,0.00042191,120]
[398960286,1766023859775,-500.0,0.00042191,120]
[398960287,1766023859786,-500.0,0.00042191,120]
[398960288,1766023859796,-500.0,0.00042191,120]
[398960289,1766023859805,-1007.7,0.00042191,60]
[398960290,1766023859814,-500.0,0.00042191,120]
[398960291,1766023859823,-500.0,0.00042191,120]
[398960292,1766023859832,-500.0,0.00042191,120]
[398960293,1766023859842,-500.0,0.00042191,120]
[398960294,1766023859851,-500.0,0.00042191,120]
[398960295,1766023859861,-500.0,0.00042191,120]
[398960296,1766023859870,-917.68,0.00042191,120]
[398960297,1766023859879,-536.79,0.00042191,120]
[398960298,1766023859888,-500.0,0.00042191,120]
[398960299,1766023859898,-500.0,0.00042191,120]
[398960300,1766023859907,-467.52528891,0.00042191,120]
[398960301,1766023859916,-500.0,0.00042191,120]
[398960302,1766023859925,-500.0,0.00042191,120]
[398960303,1766023859934,-500.0,0.00042191,120]
[398960304,1766023859943,-500.0,0.00042191,120]
[398960305,1766023859952,-278.84,0.00042191,60]
[398960306,1766023859961,-623.9667868,0.00042191,120]
[398960307,1766023859970,-500.0,0.00042191,120]
[398960308,1766023859979,-500.0,0.00042191,120]
[398960309,1766023859989,-500.0,0.00042191,120]
[398960310,1766023859998,-500.0,0.00042191,120]
[398960311,1766023860007,-500.0,0.00042191,120]
[398960312,1766023860016,-151.0,0.000423,19]
[398960313,1766023860026,-253.90067043,0.00042465,120]
[398960314,1766023860035,-500.0,0.00042465,120]
[398960315,1766023860045,-643.31574855,0.00042465,120]
[398960316,1766023860054,-270.66080291,0.00042465,120]
[398960317,1766023860064,-500.0,0.00042465,120]
[398960318,1766023860073,-500.0,0.00042465,120]
[398960319,1766023860082,-500.0,0.00042465,120]
[398960320,1766023860091,-500.0,0.00042465,120]
[398960321,1766023860100,-500.0,0.00042465,120]
[398960322,1766023860109,-500.0,0.00042465,120]
[398960323,1766023860119,-500.0,0.00042465,30]
[398960324,1766023860128,-500.0,0.00042465,120]
[398960325,1766023860137,-500.0,0.00042465,120]
[398960326,1766023860146,-500.0,0.00042465,120]
[398960327,1766023860155,-500.0,0.00042465,120]
[398960328,1766023860163,-500.0,0.00042465,120]
[398960329,1766023860173,-465.70578567,0.00042465,120]
[398960330,1766023860182,-500.0,0.00042465,120]
[398960331,1766023860193,-500.0,0.00042465,120]
[398960332,1766023860203,-416.02855045,0.00042465,120]
[398960333,1766023860213,-296.21151565,0.00042465,120]
[398960334,1766023860223,-500.0,0.00042465,120]
[398960335,1766023860232,-500.0,0.00042465,120]
[398960336,1766023860241,-500.0,0.00042465,120]
[398960337,1766023860251,-500.0,0.00042465,120]
[398960338,1766023860260,-500.0,0.00042465,120]
[398960339,1766023860270,-500.0,0.00042465,120]
[398960340,1766023860279,-375.29952975,0.00042465,120]
[398960341,1766023860289,-500.0,0.00042465,120]
[398960342,1766023860298,-500.0,0.00042465,120]
[398960343,1766023860307,-500.0,0.00042465,120]
[398960344,1766023860316,-406.53912585,0.00042465,120]
[398960345,1766023860325,-500.0,0.00042465,120]
[398960346,1766023860334,-500.0,0.00042465,120]
[398960347,1766023860343,-500.0,0.00042465,120]
[398960348,1766023860352,-500.0,0.00042465,120]
[398960349,1766023860361,-423.77568107,0.00042465,120]
[398960350,1766023860370,-500.0,0.00042465,120]
[398960351,1766023860379,-355.55557149,0.00042465,120]
[398960352,1766023860389,-500.0,0.00042465,120]
[398960353,1766023860398,-270.61779698,0.00042465,120]
[398960354,1766023860408,-500.0,0.00042465,120]
[398960355,1766023860417,-500.0,0.00042465,120]
[398960356,1766023860426,-500.0,0.00042465,120]
[398960357,1766023860435,-500.0,0.00042465,30]
[398960358,1766023860444,-620.3591644,0.00042465,120]
[398960359,1766023860453,-500.0,0.00042465,120]
[398960360,1766023860462,-500.0,0.00042465,120]
[398960361,1766023860472,-500.0,0.00042465,120]
[398960362,1766023860481,-500.0,0.00042465,120]
[398960363,1766023860490,-500.0,0.00042465,120]
[398960364,1766023860499,-500.0,0.00042465,30]
[398960365,1766023860508,-500.0,0.00042465,120]
[398960366,1766023860517,-500.0,0.00042465,21]
[398960367,1766023860526,-276.57782207,0.00042465,30]
[398960368,1766023860535,-500.0,0.00042465,120]
[398960369,1766023860544,-1341.12,0.00042465,120]
[398960370,1766023860553,-500.0,0.00042465,120]
[398960371,1766023860562,-680.25,0.00042465,120]
[398960372,1766023860571,-500.0,0.00042465,120]
[398960373,1766023860580,-500.0,0.00042465,120]
[398960374,1766023860589,-500.0,0.00042465,120]
[398960375,1766023860598,-500.0,0.00042465,120]
[398960376,1766023860610,-500.0,0.00042465,120]
[398960377,1766023860619,-500.0,0.00042465,120]
[398960378,1766023860629,-500.0,0.00042465,120]
[398960379,1766023860638,-500.0,0.00042465,120]
[398960380,1766023860650,-500.0,0.00042465,120]
[398960381,1766023860659,-500.0,0.00042465,120]
[398960382,1766023860669,-500.0,0.00042465,120]
[398960383,1766023860678,-500.0,0.00042465,120]
[398960384,1766023860688,-280.7,0.00042465,120]
[398960385,1766023860698,-428.41174297,0.00042465,120]
[398960386,1766023860707,-500.0,0.00042465,120]
[398960387,1766023860717,-868.74,0.00042465,3]
[398960388,1766023860727,-320.19661777,0.00042465,120]
[398960389,1766023860736,-488.21973168,0.00042465,120]
[398960390,1766023860745,-500.0,0.00042465,120]
[398960391,1766023860756,-500.0,0.00042465,120]
[398960392,1766023860766,-500.0,0.00042465,120]
[398960393,1766023860778,-2080.09,0.00042465,120]
[398960394,1766023860787,-552.95183369,0.00042465,120]
[398960395,1766023860851,-500.0,0.00042465,120]
[398960396,1766023860860,-835.86,0.00042465,120]
[398960397,1766023860870,-500.0,0.00042465,120]
[398960398,1766023860879,-778.67,0.00042465,120]
[398960399,1766023860888,-3505.63,0.00042465,120]
[398960400,1766023860897,-247.65863645,0.00042465,120]
[398960401,1766023860906,-500.0,0.00042465,120]
[398960402,1766023860915,-634.40053376,0.00042465,120]
[398960403,1766023860924,-2332.19,0.00042465,120]
[398960404,1766023860933,-500.0,0.00042465,120]
[398960405,1766023860943,-500.0,0.00042465,120]
[398960406,1766023860952,-500.0,0.00042465,120]
[398960407,1766023860965,-500.0,0.00042465,120]
[398960408,1766023860975,-500.0,0.00042465,120]
[398960409,1766023860984,-693.04,0.00042465,120]
[398960410,1766023860994,-500.0,0.00042465,120]
[398960411,1766023861003,-500.0,0.00042465,120]
[398960412,1766023861012,-500.0,0.00042465,120]
[398960413,1766023861021,-500.0,0.00042465,120]
[398960414,1766023861030,-500.0,0.00042465,120]
[398960415,1766023861040,-1041.66,0.00042465,120]
[398960416,1766023861050,-500.0,0.00042465,120]
[398960417,1766023861062,-500.0,0.00042465,120]
[398960418,1766023861072,-500.0,0.00042465,120]
[398960419,1766023861082,-500.0,0.00042465,120]
[398960420,1766023861091,-401.17505576,0.00042465,120]
[398960421,1766023861104,-1007.7,0.00042465,60]
[398960422,1766023861114,-412.21122572,0.00042465,120]
[398960423,1766023861125,-500.0,0.00042465,120]
[398960424,1766023861135,-500.0,0.00042465,120]
[398960425,1766023861145,-500.0,0.00042465,120]
[398960426,1766023861154,-500.0,0.00042465,120]
[398960427,1766023861163,-500.0,0.00042465,120]
[398960428,1766023861172,-917.68,0.00042465,120]
[398960429,1766023861181,-536.79,0.00042465,120]
[398960430,1766023861190,-500.0,0.00042465,120]
[398960431,1766023861199,-413.99,0.00042465,120]
[398960432,1766023861208,-500.0,0.00042465,120]
[398960433,1766023861218,-500.0,0.00042465,120]
[398960434,1766023861227,-500.0,0.00042465,120]
[398960435,1766023861236,-500.0,0.00042465,120]
[398960436,1766023861246,-500.0,0.00042465,120]
[398960437,1766023861255,-500.0,0.00042465,120]
[398960438,1766023861264,-500.0,0.00042465,120]
[398960439,1766023861274,-500.0,0.00042465,120]
[398960440,1766023861284,-500.0,0.00042465,120]
[398960441,1766023861294,-151.0,0.000427,10]
[398960442,1766023861302,-500.0,0.00042739,120]
[398960443,1766023861311,-500.0,0.00042739,120]
[398960444,1766023861320,-309.84996393,0.00042739,120]
[398960445,1766023861329,-176.35340239,0.00042739,120]
[398960446,1766023861339,-500.0,0.00042739,120]
[398960447,1766023861349,-464.02156965,0.00042739,120]
[398960448,1766023861359,-500.0,0.00042739,120]
[398960449,1766023861369,-500.0,0.00042739,30]
[398960450,1766023861379,-500.0,0.00042739,120]
[398960451,1766023861388,-500.0,0.00042739,120]
[398960452,1766023861400,-500.0,0.00042739,120]
[398960453,1766023861409,-500.0,0.00042739,120]
[398960454,1766023861418,-500.0,0.00042739,120]
[398960455,1766023861428,-500.0,0.00042739,120]
[398960456,1766023861437,-500.0,0.00042739,120]
[398960457,1766023861446,-258.84,0.00042739,120]
[398960458,1766023861456,-288.51211475,0.00042739,120]
[398960459,1766023861467,-500.0,0.00042739,120]
[398960460,1766023861477,-500.0,0.00042739,120]
[398960461,1766023861487,-500.0,0.00042739,120]
[398960462,1766023861497,-151.0,0.00042739,30]
[398960463,1766023861508,-225.049163,0.00042739,30]
[398960464,1766023861520,-500.0,0.00042739,120]
[398960465,1766023861530,-500.0,0.00042739,120]
[398960466,1766023861539,-500.0,0.00042739,120]
[398960467,1766023861549,-500.0,0.00042739,120]
[398960468,1766023861559,-500.0,0.00042739,120]
[398960469,1766023861568,-500.0,0.00042739,120]
[398960470,1766023861578,-500.0,0.00042739,120]
[398960471,1766023861588,-500.0,0.00042739,120]
[398960472,1766023861597,-500.0,0.00042739,120]
[398960473,1766023861606,-584.758341,0.00042739,120]
[398960474,1766023861616,-500.0,0.00042739,120]
[398960475,1766023861626,-584.758341,0.00042739,120]
[398960476,1766023861636,-584.758341,0.00042739,120]
[398960477,1766023861650,-584.758332,0.00042739,120]
[398960478,1766023861662,-500.0,0.00042739,120]
[398960479,1766023861671,-500.0,0.00042739,120]
[398960480,1766023861680,-500.0,0.00042739,120]
[398960481,1766023861692,-500.0,0.00042739,30]
[398960482,1766023861701,-500.0,0.00042739,120]
[398960483,1766023861710,-388.60926628,0.00042739,120]
[398960484,1766023861721,-500.0,0.00042739,120]
[398960485,1766023861730,-500.0,0.00042739,120]
[398960486,1766023861740,-500.0,0.00042739,120]
[398960487,1766023861749,-160.71019365,0.00042739,30]
[398960488,1766023861759,-500.0,0.00042739,120]
[398960489,1766023861769,-500.0,0.00042739,21]
[398960490,1766023861778,-500.0,0.00042739,120]
[398960491,1766023861788,-1341.12,0.00042739,120]
[398960492,1766023861797,-500.0,0.00042739,120]
[398960493,1766023861806,-680.25,0.00042739,120]
[398960494,1766023861816,-500.0,0.00042739,120]
[398960495,1766023861825,-356.90649731,0.00042739,120]
[398960496,1766023861834,-500.0,0.00042739,120]
[398960497,1766023861843,-500.0,0.00042739,120]
[398960498,1766023861906,-228.11096438,0.00042739,120]
[398960499,1766023861916,-500.0,0.00042739,120]
[398960500,1766023861925,-472.88,0.00042739,120]
[398960501,1766023861934,-500.0,0.00042739,120]
[398960502,1766023861944,-500.0,0.00042739,120]
[398960503,1766023861953,-500.0,0.00042739,120]
[398960504,1766023861962,-500.0,0.00042739,120]
[398960505,1766023861971,-301.96988543,0.00042739,120]
[398960506,1766023861981,-500.0,0.00042739,120]
[398960507,1766023861990,-868.74,0.00042739,3]
[398960508,1766023862000,-500.0,0.00042739,120]
[398960509,1766023862009,-500.0,0.00042739,120]
[398960510,1766023862018,-500.0,0.00042739,120]
[398960511,1766023862028,-2080.09,0.00042739,120]
[398960512,1766023862038,-500.0,0.00042739,120]
[398960513,1766023862048,-835.86,0.00042739,120]
[398960514,1766023862058,-500.0,0.00042739,120]
[398960515,1766023862069,-778.67,0.00042739,120]